[Event "36th German Seniors-ch-65 2024"]
[Site "Bad Wildungen"]
[Date "2024.08.27"]
[Round "5.3"]
[White "Klundt, Klaus"]
[Black "Dekan, Hans"]
[Result "0-1"]
[ECO "B56"]
[WhiteElo "2264"]
[BlackElo "2079"]
[Annotator "RC"]
[PlyCount "66"]
[EventDate "2024.08.22"]
[EventType "swiss"]
[EventCountry "GER"]
[SourceTitle "playchess.com"]
[Source "ChessBase"]
[SourceQuality "1"]
[TimeControl "40/5400+30:1800+30"]

1. e4 {[%emt 0:00:01]} c5 {[%emt 0:00:16]} 2. Nf3 {[%emt 0:00:09]} Nc6 {[%emt 0:00:14]} 3. Nc3 {[%emt 0:00:15]} d6 {[%emt 0:01:09]} 4. d4 {[%emt 0:00:17]} cxd4 {[%emt 0:00:15]} 5. Nxd4 {[%emt 0:00:04]} Nf6 {[%emt 0:00:18]} 6. Nd5 {[%emt 0:00:21]} e6 {[%emt 0:24:31]} 7. Nxf6+ {[%emt 0:00:31]} gxf6 {[%emt 0:00:40]} 8. g3 {[%emt 0:04:48]} e5 {[%emt 0:04:52]} 9. Nb5 {[%emt 0:02:55]} Be6 {[%emt 0:06:19]} 10. Be3 {[%emt 0:02:51]} Rc8 {[%emt 0:08:50]} 11. Qd2 {[%emt 0:01:58]} d5 {[%emt 0:02:49]} 12. Nxa7 {[%emt 0:06:19]} d4 {[%emt 0:07:30]} 13. Nxc6 {[%emt 0:01:03]} Rxc6 {[%emt 0:06:22]} 14. Bb5 {[%emt 0:05:43]} Qb6 {[%emt 0:02:56]} 15. Bxc6+ {[%emt 0:09:01]} Qxc6 {[%emt 0:00:26]} 16. O-O-O {[%emt 0:02:27]} Qa6 {[%emt 0:09:36]} 17. Bxd4 {[%emt 0:04:01]} Qxa2 {[%emt 0:00:45]} 18. Qe3 {[%emt 0:00:13]} exd4 {[%emt 0:06:09]} 19. Qxd4 {[%emt 0:00:19]} Be7 {[%emt 0:00:21]} 20. f4 {[%emt 0:00:34]} O-O {[%emt 0:00:13]} 21. f5 {[%emt 0:00:13]} Rd8 {[%emt 0:03:45]} 22. Qxd8+ {[%emt 0:05:46]} Bxd8 {[%emt 0:00:04]} 23. fxe6 {[%emt 0:00:10]} Qa1+ {[%emt 0:02:14]} 24. Kd2 {[%emt 0:00:08]} Qa5+ {[%emt 0:00:06]} 25. Ke2 {[%emt 0:00:38]} fxe6 {[%emt 0:00:12]} 26. Rd3 {[%emt 0:00:57]} Bb6 {[%emt 0:03:02]} 27. Rf1 {[%emt 0:00:50]} Kg7 {[%emt 0:01:05]} 28. g4 {[%emt 0:00:10]} Qe5 {[%emt 0:00:38]} 29. Kf3 {[%emt 0:00:35]} Qxh2 {[%emt 0:00:24]} 30. Rd7+ {[%emt 0:00:19]} Kg6 {[%emt 0:00:37]} 31. Rxb7 {[%emt 0:00:08]} Qh3+ {[%emt 0:00:23]} 32. Ke2 {[%emt 0:00:17]} Qe3+ {[%emt 0:00:53]} 33. Kd1 {[%emt 0:00:09]} Qxe4 {[%emt 0:00:48]} 0-1

[Event "36th German Seniors-ch-65 2024"]
[Site "Bad Wildungen"]
[Date "2024.08.27"]
[Round "5.4"]
[White "Buchal, Stephan"]
[Black "Zuehlke, Burkhard"]
[Result "1-0"]
[ECO "A26"]
[WhiteElo "2215"]
[BlackElo "1999"]
[Annotator "TA"]
[PlyCount "45"]
[EventDate "2024.08.22"]
[EventType "swiss"]
[EventCountry "GER"]
[SourceTitle "playchess.com"]
[Source "ChessBase"]
[SourceQuality "1"]
[TimeControl "40/5400+30:1800+30"]

{[%evp 12,45,6,18,29,12,15,15,19,31,40,35,45,51,45,40,75,37,66,66,121,119,135,139,206,214,420,396,488,502,579,578,562,586,1090,1102]} 1. c4 {[%emt 0:00:06]} g6 {[%emt 0:00:06]} 2. g3 {[%emt 0:00:13]} Bg7 {[%emt 0:00:08]} 3. Bg2 {[%emt 0:00:05]} e5 {[%emt 0:00:23]} 4. Nc3 {[%emt 0:01:37]} d6 {[%emt 0:00:36]} 5. e4 {[%emt 0:03:52]} Nc6 {[%emt 0:01:19]} 6. Nge2 {[%emt 0:00:19]} Nge7 {[%emt 0:00:26]} 7. d3 {[%emt 0:01:13]} a6 {[%emt 0:02:57]} 8. Nd5 {[%emt 0:05:02]} Nxd5 {[%emt 0:10:14]} 9. cxd5 {[%emt 0:00:52]} Ne7 {[%emt 0:00:21] The position is equal.} 10. Be3 {[%emt 0:03:06]} O-O {[%emt 0:03:46]} 11. O-O {[%emt 0:01:21][%cal Bh1f1,Bf1f2,Bf2e2][%mdl 32]} Bg4 {[%emt 0:07:21]} 12. f3 {[%emt 0:12:05]} Bd7 {[%emt 0:00:29]} 13. d4 {[%emt 0:00:39]} Bb5 {[%emt 0:10:54]} 14. Rf2 {[%emt 0:08:16]} f5 {[%emt 0:05:13]} 15. dxe5 {[%emt 0:06:25]} Bxe2 {[%emt 0:14:12]} ({Better is} 15... fxe4 $14 16. fxe4 Rxf2 17. Bxf2 Bxe5) 16. Rxe2 $16 {[%emt 0:02:22]} fxe4 {[%emt 0:08:29]} 17. fxe4 {[%emt 0:16:56]} dxe5 {[%emt 0:07:31]} (17... Bxe5 $16 {was worth a try.} 18. Bh6 Re8) 18. Qb3 $18 {[%emt 0:01:27] aiming for d6+.} Qd6 $2 {[%emt 0:00:53]} (18... Nc8 19. Qxb7 Nd6) 19. Rc1 {[%emt 0:00:58]} (19. Qxb7 $2 {loses.} Rfb8 $19) 19... b6 {[%emt 0:01:13] Wards off Bc5} 20. Rec2 {[%emt 0:00:44] White is clearly winning.} Ra7 {[%emt 0:08:14] [#]} 21. Rxc7 $3 {[%emt 0:03:18][%mdl 512]} Rxc7 {[%emt 0:06:08]} 22. Rxc7 {[%emt 0:00:12]} (22. Qxb6 $2 {too greedy.} Rxc1+ $19) 22... Rb8 {[%emt 0:00:38] [#]} 23. Bc5 $1 {[%emt 0:05:31][%mdl 512] Weighted Error Value: White=0.07 (flawless) /Black=0.45.  Mistake:       	---       	Black=3      Inaccurate:     	White=1     	Black=3      OK:         	White=7     	Black=3      Brilliant:      	White=1     	---} 1-0

[Event "36th German Seniors-ch-65 2024"]
[Site "Bad Wildungen"]
[Date "2024.08.27"]
[Round "5.5"]
[White "Zimmermann, Rolf"]
[Black "Koehler, Gerhard"]
[Result "1-0"]
[ECO "A37"]
[WhiteElo "2107"]
[BlackElo "2210"]
[Annotator "TA"]
[PlyCount "57"]
[EventDate "2024.08.22"]
[EventType "swiss"]
[EventCountry "GER"]
[SourceTitle "playchess.com"]
[Source "ChessBase"]
[SourceQuality "1"]
[TimeControl "40/5400+30:1800+30"]

{[%evp 16,57,0,-18,-17,-9,-4,-16,0,-31,-28,-24,-37,-63,-20,-12,23,0,20,14,28,23,17,0,0,0,0,-10,30,36,96,6,33,0,90,49,80,14,0,9,404,393,393,390]} 1. c4 {[%emt 0:00:11]} c5 {[%emt 0:00:15]} 2. Nc3 {[%emt 0:00:15]} Nc6 {[%emt 0:00:50]} 3. Nf3 {[%emt 0:01:46]} g6 {[%emt 0:01:45]} 4. g3 {[%emt 0:04:02]} Bg7 {[%emt 0:01:26]} 5. Bg2 {[%emt 0:01:15]} d6 {[%emt 0:02:18]} 6. O-O {[%emt 0:01:40]} e5 {[%emt 0:00:20]} 7. d3 {[%emt 0:03:44]} Nge7 {[%emt 0:00:20]} 8. Bd2 {[%emt 0:01:42]} O-O {[%emt 0:02:47]} 9. Qc1 {[%emt 0:02:52]} a6 {[%emt 0:08:35]} 10. Bh6 {[%emt 0:08:55]} Rb8 {[%emt 0:01:03]} 11. Ne1 {[%emt 0:16:19]} Be6 {[%emt 0:11:13] The position is equal.} 12. h3 {[%emt 0:01:09]} b5 {[%emt 0:03:12]} 13. Bxg7 {[%emt 0:01:34]} Kxg7 {[%emt 0:01:13]} 14. b3 {[%emt 0:00:47]} Qa5 {[%emt 0:10:14]} 15. e3 {[%emt 0:02:11]} Bf5 {[%emt 0:02:32]} 16. Nd5 {[%emt 0:11:27]} Nxd5 {[%emt 0:01:13]} 17. cxd5 {[%emt 0:00:03]} Ne7 {[%emt 0:00:44]} 18. f4 {[%emt 0:00:51] Black must now prevent fxe5.} f6 {[%emt 0:00:49]} 19. fxe5 {[%emt 0:03:28]} (19. e4 $5 Bd7 $8 20. Kh2 $11) 19... fxe5 {[%emt 0:01:12]} 20. e4 {[%emt 0:03:22]} Bd7 {[%emt 0:00:25]} 21. Nf3 {[%emt 0:01:19]} h6 {[%emt 0:04:31]} 22. Qb2 $36 {[%emt 0:01:58][%cal Of3e5][%mdl 2048] [#] And now Nxe5! would win. White is more active.} c4 {[%emt 0:15:57]} ({Better is} 22... Qc7 $1 $14) 23. b4 {[%emt 0:01:14]} (23. Nxe5 $2 c3 24. Qc1 Rxf1+ (24... dxe5 $2 25. Qe3 $19) 25. Kxf1 dxe5 $19) ({White should try} 23. Rac1 $16) 23... Qb6+ {[%emt 0:00:25]} (23... Qc7 {feels hotter.} 24. Qc3 g5 25. dxc4 Qxc4 26. Qe3 Qxb4 27. Nxg5 Ng6) 24. Kh2 {[%emt 0:00:06][%cal Of3e5] Strongly threatening Nxe5!} Qc7 {[%emt 0:00:43]} (24... Rbc8 $1 $11 {keeps the balance.}) 25. Rac1 {[%emt 0:00:31]} Rbc8 {[%emt 0:01:40]} 26. Rc3 {[%emt 0:03:03]} (26. d4 $16 {[%cal Rd4e5]} c3 27. Qc2) 26... Qa7 {[%emt 0:03:49]} 27. dxc4 {[%emt 0:01:50]} Rxc4 {[%emt 0:02:02][%mdl 8192]} (27... bxc4 $11 {and Black has nothing to worry.} 28. Rfc1 Bb5) 28. Rxc4 $18 {[%emt 0:00:25]} (28. Nxe5 Rxf1 29. Bxf1 Rxc3 (29... dxe5 30. Bxc4 bxc4 31. Rxc4 $18) 30. Qxc3 dxe5 $16 (30... Qf2+ 31. Bg2 $11)) 28... bxc4 {[%emt 0:00:02] [#]} 29. Nxe5 $1 {[%emt 0:01:15][%mdl 512] Weighted Error Value: White=0.23 (precise) /Black=0.54.  Loses game:     	---       	Black=1      Mistake:       	White=2     	Black=2      Inaccurate:     	White=4     	Black=5      OK:         	White=6     	Black=3      Brilliant:      	White=1     	---} 1-0

[Event "36th German Seniors-ch-65 2024"]
[Site "Bad Wildungen"]
[Date "2024.08.27"]
[Round "5.6"]
[White "Podat, Vladimir"]
[Black "Schmidt, Gerhard"]
[Result "1-0"]
[ECO "B51"]
[WhiteElo "2157"]
[BlackElo "2088"]
[Annotator "TA"]
[PlyCount "101"]
[EventDate "2024.08.22"]
[EventType "swiss"]
[EventCountry "GER"]
[SourceTitle "playchess.com"]
[Source "ChessBase"]
[SourceQuality "1"]
[TimeControl "40/5400+30:1800+30"]

{[%evp 9,101,8,6,6,36,23,26,27,29,34,41,37,108,109,105,104,104,106,132,139,128,103,139,124,121,139,132,136,141,138,153,156,158,151,189,133,204,143,136,127,140,135,132,131,220,129,231,96,103,104,189,187,197,151,156,156,155,164,168,161,402,387,491,482,492,491,489,474,516,535,555,547,595,584,685,677,791,787,883,935,1222,1266,29987,29976,29988,29981,29992,4902,29967,29968,29985,461,750,743]} 1. e4 {[%emt 0:00:08]} c5 {[%emt 0:00:13]} 2. Nf3 {[%emt 0:00:11]} d6 {[%emt 0:00:17]} 3. Bb5+ {[%emt 0:00:17]} Nd7 {[%emt 0:00:17]} 4. a4 {[%emt 0:00:20]} Ngf6 {[%emt 0:01:17]} 5. Nc3 {[%emt 0:00:22]} a6 {[%emt 0:04:57]} 6. Be2 {[%emt 0:00:12]} e5 {[%emt 0:02:25]} 7. Bc4 {[%emt 0:01:45]} Be7 {[%emt 0:02:42]} 8. d3 {[%emt 0:00:41] White has an edge.} O-O {[%emt 0:03:18]} 9. Nd2 {[%emt 0:01:22]} Nb6 {[%emt 0:11:09]} 10. a5 {[%emt 0:00:31]} d5 {[%emt 0:01:33]} ({Better is} 10... Bg4 $14 11. f3 Nxc4 12. Nxc4 Be6) 11. axb6 $16 {[%emt 0:03:14]} dxc4 {[%emt 0:00:12]} 12. Nxc4 {[%emt 0:00:05]} Bg4 {[%emt 0:05:43]} 13. Qd2 {[%emt 0:01:44]} Be6 {[%emt 0:02:00]} 14. Nxe5 {[%emt 0:04:20]} Qxb6 {[%emt 0:01:23]} 15. Nc4 {[%emt 0:05:29] Excellent horsemanship.} Qd8 {[%emt 0:05:55] [#]} 16. O-O $1 {[%emt 0:01:29]} b5 {[%emt 0:04:21][%cal Bb7b5,Bb5b4][%mdl 32]} 17. Ne3 {[%emt 0:01:09]} b4 {[%emt 0:07:28]} 18. Na4 {[%emt 0:02:02]} Nd7 {[%emt 0:14:31]} 19. b3 {[%emt 0:01:31]} Bf6 {[%emt 0:00:40]} 20. Bb2 {[%emt 0:00:12]} Bxb2 {[%emt 0:01:03]} 21. Nxb2 {[%emt 0:00:08]} Nb6 {[%emt 0:00:37]} 22. Na4 {[%emt 0:18:56]} (22. Ra5 $18) 22... Qd6 {[%emt 0:04:36]} (22... Nxa4 $16 23. Rxa4 a5) 23. Nxb6 {[%emt 0:02:14]} Qxb6 {[%emt 0:00:10]} 24. Ra2 {[%emt 0:00:18]} Rfd8 {[%emt 0:00:56]} 25. Qe2 {[%emt 0:06:59]} f6 {[%emt 0:01:49]} 26. f4 {[%emt 0:02:29]} Qd6 {[%emt 0:03:44] [#]} (26... a5 $16 27. h3 Ra6) 27. Qf2 {[%emt 0:01:54]} ({White should try} 27. f5 $1 $18 {[%cal Rf5e6]} Bf7 28. Rfa1) 27... Qd4 {[%emt 0:01:24]} (27... a5 $16 28. Rfa1 Qc7) 28. Nc4 {[%emt 0:03:15]} (28. Ra5 $18 {has better winning chances.}) 28... Bxc4 {[%emt 0:06:50]} 29. Qxd4 {[%emt 0:00:09]} (29. dxc4 Qxe4 30. Ra5 (30. Qxc5 $2 Rd2 $19) 30... Qd4 $14) 29... cxd4 {[%emt 0:02:45]} (29... Rxd4 $16 30. bxc4 b3 (30... a5 $2 31. Rfa1 $18) 31. cxb3 Rxd3) 30. bxc4 {[%emt 0:00:26][%mdl 4096] Endgame. KRR-KRR} (30. dxc4 d3 $11) 30... Rdb8 {[%emt 0:00:31]} 31. Rb1 {[%emt 0:02:02]} (31. Kf2 $18) 31... a5 {[%emt 0:00:33]} 32. Ra4 {[%emt 0:00:19]} (32. Rba1 b3 33. cxb3 (33. Rxa5 $2 Rxa5 34. Rxa5 bxc2 $19) 33... Rxb3 $16) 32... Kf7 {[%emt 0:01:07]} 33. Kf2 {[%emt 0:00:59]} (33. Rba1 b3 34. cxb3 (34. Rxa5 Rxa5 35. Rc1 b2 36. Rb1 Ra1 37. Kf2 Rxb1 38. e5 fxe5 39. h4 Rh1 40. Kf3 b1=Q 41. Ke4 Rxh4 42. Kxe5 Rd8 43. Kf5 g6+ 44. Kg5 Qe1 45. g4 h6#) 34... Rxb3 $16) 33... Ke6 {[%emt 0:00:23]} 34. Ke2 {[%emt 0:00:21]} Kd6 $2 {[%emt 0:02:17]} (34... Rb7 35. Rba1 Rba7) 35. Rba1 $18 {[%emt 0:01:29]} b3 {[%emt 0:00:45]} 36. cxb3 {[%emt 0:00:05]} (36. Rxa5 $2 Rxa5 37. Rxa5 b2 $19) 36... Rxb3 {[%emt 0:00:19]} 37. Rxa5 {[%emt 0:00:02]} Rb2+ {[%emt 0:01:53]} 38. Kf3 {[%emt 0:00:30]} Rab8 {[%emt 0:04:11]} 39. Rd5+ {[%emt 0:00:19]} Kc6 {[%emt 0:03:08]} 40. Ra6+ {[%emt 0:00:23]} Kc7 {[%emt 0:00:23]} 41. Ra7+ {[%emt 0:30:07]} Kc6 {[%emt 0:01:24]} 42. Rxd4 {[%emt 0:00:00]} Rd2 {[%emt 0:03:10]} 43. Rxg7 {[%emt 0:00:00]} Rbb2 {[%emt 0:03:20]} 44. Rd5 {[%emt 0:00:00]} Rf2+ {[%emt 0:03:05]} 45. Ke3 {[%emt 0:00:00] Threatening mate with Kd4.} Rbe2+ {[%emt 0:00:52]} 46. Kd4 {[%emt 0:00:00]} Rxf4 {[%emt 0:00:46]} 47. g3 {[%emt 0:00:00]} Rf3 {[%emt 0:01:42]} 48. Rxh7 {[%emt 0:00:00]} (48. Rc5+ $142 Kb6 49. Rgc7 (49. Rxh7 Ra2 $18) (49. Rb5+ Kc6 50. Rbb7 Rc2 51. Rbe7 Kd6 52. Ra7 Rxd3+ 53. Kxd3 Kc5 54. Rac7+ Kb6) 49... Rxd3+ 50. Kxd3 Rxh2 51. R5c6+ Ka5 52. Ra7+ (52. Rxf6 Rh5 53. Kc3 Ka4 54. Ra7+ Ra5 55. Rfa6 Rxa6 56. Rxa6#) 52... Kb4 53. Rb7+ (53. Rxf6 Rd2+ 54. Kxd2 Kxc4 55. Ke3 h5 56. Rb7 Kc5 57. Rbb6 Kc4 58. Rfc6#) 53... Ka5 54. Rb5+ Ka4 55. Ra6#) 48... Ree3 {[%emt 0:00:29]} 49. Kc3 {[%emt 0:00:00]} Rxe4 {[%emt 0:00:22]} 50. Rh4 {[%emt 0:00:00]} (50. Ra5 $142 Kd6 51. Ra6+ Ke5 52. Rh5+ (52. Re7+ Kf5 $18) 52... Rf5 53. Rxf5+ Kxf5 54. dxe4+ Kxe4 55. Rxf6) 50... Re1 {[%emt 0:02:01]} (50... Rxh4 $142 51. gxh4 Rf2) 51. Rf4 {[%emt 0:45:32] Weighted Error Value: White=0.13 (very precise) /Black=0.50.  Mistake:       	White=4     	Black=6      Inaccurate:     	---       	Black=2      OK:         	White=15    	Black=8      Best:        	White=4     	Black=2      Strong:       	White=1     	---} 1-0

[Event "36th German Seniors-ch-65 2024"]
[Site "Bad Wildungen"]
[Date "2024.08.27"]
[Round "5.7"]
[White "Lutz, Albert"]
[Black "Kaeding, Rainer"]
[Result "1/2-1/2"]
[ECO "E18"]
[WhiteElo "2070"]
[BlackElo "2116"]
[Annotator "TA"]
[PlyCount "157"]
[EventDate "2024.08.22"]
[EventType "swiss"]
[EventCountry "GER"]
[SourceTitle "playchess.com"]
[Source "ChessBase"]
[SourceQuality "1"]
[TimeControl "40/5400+30:1800+30"]

{[%evp 18,157,14,14,21,19,19,14,18,0,0,0,8,9,6,24,18,20,56,62,62,42,55,55,73,39,35,53,90,94,95,90,136,108,129,50,182,178,182,168,224,191,193,145,259,108,161,108,94,92,93,88,95,87,84,89,101,83,90,90,95,73,75,59,90,90,90,90,90,90,90,90,90,83,97,90,90,83,90,90,90,90,97,90,95,90,90,90,90,90,124,61,88,54,54,54,54,54,54,54,61,61,112,93,257,119,119,112,131,145,131,118,235,83,196,51,198,51,51,51,153,130,127,127,484,8,8,8,8,0,0,0,0,0,0,0,0,0,0,0,0,0]} 1. Nf3 {[%emt 0:00:06]} d5 {[%emt 0:00:20]} 2. c4 {[%emt 0:00:55]} e6 {[%emt 0:00:25]} 3. g3 {[%emt 0:00:30]} Nf6 {[%emt 0:00:37]} 4. Bg2 {[%emt 0:00:10]} Be7 {[%emt 0:00:49]} 5. d4 {[%emt 0:00:29]} O-O {[%emt 0:00:53]} 6. O-O {[%emt 0:00:17]} c6 {[%emt 0:01:16]} 7. Nc3 {[%emt 0:03:18]} b6 {[%emt 0:02:36]} 8. cxd5 {[%emt 0:05:07]} exd5 {[%emt 0:00:34]} 9. Bf4 {[%emt 0:01:09]} Bb7 {[%emt 0:02:45]} 10. Rc1 {[%emt 0:03:17]} Nbd7 {[%emt 0:01:13]} 11. a3 {[%emt 0:04:06][%cal Ba2a3,Ba3a4][%mdl 32]} Nh5 {[%emt 0:05:57]} 12. Bd2 {[%emt 0:01:29]} Nhf6 {[%emt 0:01:47]} 13. b4 {[%emt 0:01:31]} a5 {[%emt 0:02:16]} 14. Qb3 {[%emt 0:02:15]} b5 {[%emt 0:08:49]} 15. bxa5 {[%emt 0:11:40]} Rxa5 {[%emt 0:02:58]} 16. a4 {[%emt 0:00:11]} b4 {[%emt 0:01:15]} 17. Na2 {[%emt 0:03:11]} Qa8 {[%emt 0:02:23][%cal Oc6c5]} 18. Bxb4 {[%emt 0:00:28]} Bxb4 {[%emt 0:00:28]} 19. Nxb4 {[%emt 0:00:14]} Rxa4 {[%emt 0:00:18]} 20. Rfd1 {[%emt 0:11:42]} Rb8 {[%emt 0:02:30] [#] ...Bc8 would now be deadly.} 21. Qc3 {[%emt 0:00:51][%cal Of3e5]} Ne4 {[%emt 0:03:27]} 22. Qe1 {[%emt 0:01:09]} c5 {[%emt 0:05:08]} 23. dxc5 {[%emt 0:01:31]} Ndxc5 {[%emt 0:00:09]} 24. Nd4 {[%emt 0:01:58] And now f3 would win.} Ne6 {[%emt 0:20:07]} (24... Qa5 $142 25. Ndc6 Bxc6 26. Nxc6 Qxe1+ 27. Rxe1 Re8) 25. Ndc6 {[%emt 0:03:09]} Re8 {[%emt 0:04:01]} 26. e3 {[%emt 0:04:47]} (26. Rxd5 $16 h6 27. e3 (27. Bxe4 Bxc6 28. Rxc6 Rxb4 $16)) 26... N4c5 {[%emt 0:05:00]} (26... Nc7 $14) 27. Bxd5 $18 {[%emt 0:03:21]} h6 {[%emt 0:02:22]} 28. Qc3 {[%emt 0:09:50]} Ra3 {[%emt 0:04:17]} (28... Kh8 $142 29. Qc2 Kg8) 29. Qb2 {[%emt 0:02:20]} Qa4 {[%emt 0:01:39]} 30. Ra1 {[%emt 0:01:46]} (30. Qb1 $18) 30... Ra8 {[%emt 0:02:09]} (30... Rxa1 $16 {was necessary.} 31. Rxa1 Qb5) 31. Rxa3 {[%emt 0:00:28]} (31. Nc2 $18 Rxa1 32. Rxa1 Bxc6 33. Rxa4 Nxa4 34. Qe5 (34. Bxc6 Nxb2 35. Bxa8 Nc5 $16) 34... Bxd5 35. Qxd5) 31... Qxa3 {[%emt 0:00:06]} (31... Qxd1+ $16 32. Kg2 Rxa3 33. Qxa3 Kh7) 32. Qxa3 {[%emt 0:00:17]} (32. Qe5 $18) 32... Rxa3 $16 {[%emt 0:00:07]} 33. Ne7+ {[%emt 0:01:54]} Kf8 {[%emt 0:00:34]} 34. Bxb7 {[%emt 0:00:12]} Nxb7 {[%emt 0:00:06]} 35. Nbd5 {[%emt 0:03:19]} Nbc5 {[%emt 0:04:16]} 36. Rb1 {[%emt 0:03:29]} Ra8 {[%emt 0:00:17] Repels Rb8+} 37. Nf5 {[%emt 0:02:15]} Rd8 {[%emt 0:02:30]} 38. Nc3 {[%emt 0:00:20]} h5 {[%emt 0:00:53]} 39. Rb4 {[%emt 0:06:27]} g6 {[%emt 0:00:51]} 40. Nd4 {[%emt 0:00:29]} Rd7 {[%emt 0:00:59]} 41. Nxe6+ {[%emt 0:30:37]} Nxe6 {[%emt 0:30:07][%mdl 4096] Endgame. KRN-KRN} 42. h4 {[%emt 0:01:03]} Kg7 {[%emt 0:00:40]} 43. Kf1 {[%emt 0:01:08]} Rc7 {[%emt 0:03:42]} 44. Ne4 {[%emt 0:02:35]} Ra7 {[%emt 0:00:52]} 45. Rc4 {[%emt 0:01:22]} Rd7 {[%emt 0:00:49]} 46. Ke2 {[%emt 0:00:22]} Ra7 {[%emt 0:00:28]} 47. Nd6 {[%emt 0:00:18]} Rd7 {[%emt 0:03:19]} 48. Ne8+ {[%emt 0:02:15]} Kf8 {[%emt 0:01:02]} 49. Nf6 {[%emt 0:00:10]} Rd8 {[%emt 0:00:56]} 50. e4 {[%emt 0:00:29]} Kg7 {[%emt 0:00:51]} 51. Nd5 {[%emt 0:02:00]} Rd7 {[%emt 0:00:00]} 52. Ke3 {[%emt 0:00:00]} Ra7 {[%emt 0:00:00]} 53. f4 {[%emt 0:00:00]} Ra1 {[%emt 0:00:00]} 54. e5 {[%emt 0:00:00]} (54. f5 $16 gxf5 55. exf5 Re1+ 56. Kf2) 54... Re1+ {[%emt 0:00:00]} 55. Kd2 {[%emt 0:00:00]} Rg1 {[%emt 0:00:00]} 56. Rc3 {[%emt 0:00:00]} Rg2+ {[%emt 0:00:00]} 57. Ke1 {[%emt 0:00:00]} Nd4 {[%emt 0:00:00]} 58. Kf1 {[%emt 0:00:00]} Rd2 {[%emt 0:00:00]} 59. Nf6 {[%emt 0:00:00]} Ne6 {[%emt 0:00:00]} ({Black should try} 59... Nf5 $14) 60. Rc8 {[%emt 0:00:00]} Nf8 $2 {[%emt 0:00:00]} (60... Rd3 $16) 61. Rc7 {[%emt 0:00:00]} (61. Ne8+ $18 {and White stays clearly on top.} Kg8 62. Nd6) 61... Ne6 {[%emt 0:00:00]} 62. Ra7 {[%emt 0:00:00]} Rd8 {[%emt 0:00:00]} 63. Ne4 {[%emt 0:00:00]} Kg8 {[%emt 0:00:00]} 64. Nd6 {[%emt 0:00:00] White is more active.} Rf8 {[%emt 0:00:00]} (64... f6 $16) 65. Kg2 $2 {[%emt 0:00:00]} (65. Kf2 $18 {has better winning chances.}) 65... Nd4 {[%emt 0:00:00]} (65... f6 $16 {might work better.}) 66. Rc7 {[%emt 0:00:00]} (66. Rd7 $18) 66... Ne6 {[%emt 0:00:00] [#]} (66... f6 $14) 67. Rc8 {[%emt 0:00:00]} ({White should play} 67. Re7 $1 $18) 67... Rxc8 $14 {[%emt 0:00:00]} 68. Nxc8 {[%emt 0:00:00] KN-KN} f6 {[%emt 0:00:26]} 69. Kf3 $16 {[%emt 0:00:00] Hoping for Ke4.} ({Not} 69. exf6 Kf7 $11) 69... fxe5 {[%emt 0:00:08]} 70. fxe5 {[%emt 0:00:00] Threatens to win with Ke4.} g5 $2 {[%emt 0:03:44][%mdl 8192]} (70... Kf8 $16 {is tougher.} 71. Ke4 Nc7) 71. hxg5 $2 {[%emt 0:00:00]} (71. Nd6 $18) 71... Kf7 $1 $11 {[%emt 0:00:06] The position is equal.} 72. Nd6+ {[%emt 0:00:00]} Kg6 {[%emt 0:00:07]} 73. Ne4 {[%emt 0:00:00]} Kf5 {[%emt 0:00:07]} 74. Ke3 {[%emt 0:00:44]} Kxe5 {[%emt 0:00:50]} 75. Nf6 {[%emt 0:00:21]} Nxg5 {[%emt 0:00:45]} 76. Nxh5 {[%emt 0:00:32]} Kf5 {[%emt 0:00:21]} 77. Nf4 {[%emt 0:00:38]} Kg4 {[%emt 0:00:12]} 78. Ne2 {[%emt 0:00:03]} Nh3 {[%emt 0:01:23]} 79. Ke4 {[%emt 0:13:26] Weighted Error Value: White=0.17 (very precise) /Black=0.24 (precise) .  Loses game:     	---       	Black=2      Missed win:     	White=1     	---        Mistake:       	White=9     	Black=10     Inaccurate:     	White=2     	Black=5      OK:         	White=21    	Black=26     Best:        	White=4     	Black=3      Strong:       	---       	Black=1} 1/2-1/2

[Event "36th German Seniors-ch-65 2024"]
[Site "Bad Wildungen"]
[Date "2024.08.27"]
[Round "5.8"]
[White "Kornrumpf, Joachim"]
[Black "Namyslo, Holger"]
[Result "1/2-1/2"]
[ECO "A01"]
[WhiteElo "2029"]
[BlackElo "2140"]
[Annotator "TA"]
[PlyCount "41"]
[EventDate "2024.08.22"]
[EventType "swiss"]
[EventCountry "GER"]
[SourceTitle "playchess.com"]
[Source "ChessBase"]
[SourceQuality "1"]
[TimeControl "40/5400+30:1800+30"]

{[%evp 9,41,-4,26,-24,-26,-41,-6,-12,0,-39,-8,-11,0,0,9,-6,0,0,0,-2,0,0,0,4,53,22,16,20,18,0,0,0,26,18]} 1. b3 {[%emt 0:00:04]} e5 {[%emt 0:00:14]} 2. Bb2 {[%emt 0:00:27]} d6 {[%emt 0:00:12]} 3. e3 {[%emt 0:00:53]} g6 {[%emt 0:00:32]} 4. Nf3 {[%emt 0:02:33]} Bg7 {[%emt 0:00:41]} 5. c4 {[%emt 0:01:08]} Ne7 {[%emt 0:01:25]} 6. Qc2 {[%emt 0:02:27]} (6. d4 $142) 6... c5 $11 {[%emt 0:01:38]} 7. d4 {[%emt 0:05:12]} exd4 {[%emt 0:09:05]} 8. exd4 {[%emt 0:01:18] The position is equal.} Bf5 {[%emt 0:01:13]} 9. Bd3 {[%emt 0:06:27]} Bxd3 {[%emt 0:00:53]} 10. Qxd3 {[%emt 0:00:02]} Nbc6 {[%emt 0:01:51]} 11. Bc3 {[%emt 0:21:06]} O-O {[%emt 0:04:28] [#] Strongly threatening ...cxd4.} 12. O-O {[%emt 0:03:52]} Nf5 {[%emt 0:02:30]} 13. d5 {[%emt 0:10:34]} Ncd4 {[%emt 0:01:23]} 14. Nxd4 {[%emt 0:05:17]} Nxd4 {[%emt 0:03:12]} 15. Re1 {[%emt 0:07:38]} Re8 {[%emt 0:14:39] [#] ...Rxe1+ is the strong threat.} 16. Nd2 {[%emt 0:02:16]} f5 {[%emt 0:06:14]} (16... Qd7 $11) 17. Nf3 {[%emt 0:01:59]} Nxf3+ {[%emt 0:01:21]} 18. Qxf3 {[%emt 0:00:06]} Qd7 {[%emt 0:00:42] Dodges Re6} 19. Rad1 {[%emt 0:05:52]} Bxc3 {[%emt 0:12:44]} 20. Qxc3 {[%emt 0:01:00]} Qg7 {[%emt 0:00:24] Inhibits Qf6.} 21. Qxg7+ {[%emt 0:00:28] An uneventful encounter.   Weighted Error Value: White=0.15 (very precise) /Black=0.14 (very precise) .  Mistake:       	---       	Black=1      Inaccurate:     	White=2     	Black=3      OK:         	White=4     	Black=2      Best:        	---       	Black=1} 1/2-1/2